bitfinex/quotes_SOLUSD_20250529
["timestamp","ask_amount","ask_price","bid_price","bid_amount"]
[1748517088365,6.21218246,172.84,172.83,0.14216157]
[1748517095454,0.14216157,172.85,172.84,0.14216157]
[1748517096058,179.08511279,172.86,172.84,0.14216157]
[1748517096376,0.14216157,172.85,172.84,0.14216157]
[1748517096574,5.78402452,172.89,172.85,0.14216157]
[1748517096762,5.78402452,172.89,172.86,12.41012396]
[1748517097073,0.14216157,172.88,172.86,12.41012396]
[1748517097246,0.42648471,172.88,172.85,12.26796239]
[1748517097443,0.42648471,172.88,172.85,0.14216157]
[1748517097668,0.42648471,172.88,172.84,0.14216157]
[1748517097870,0.14216157,172.86,172.84,12.41012396]
[1748517102598,5.92729574,172.86,172.84,12.41012396]
[1748517102958,0.28432314,172.85,172.82,0.14216157]
[1748517103675,0.28432314,172.85,172.82,12.41012396]
[1748517104279,0.28432314,172.85,172.84,0.14216157]
[1748517104978,5.92729574,172.86,172.84,0.14216157]
[1748517108888,5.92729574,172.86,172.82,12.41012396]
[1748517109467,5.92729574,172.86,172.82,0.14216157]
[1748517109468,0.28432314,172.85,172.82,0.14216157]
[1748517110677,5.78569775,172.84,172.82,0.14216157]
[1748517111987,0.14216157,172.83,172.82,0.14216157]
[1748517115094,0.14216157,172.83,172.82,12.41012396]
[1748517116577,0.14216157,172.84,172.82,12.41012396]
[1748517116902,0.14216157,172.84,172.83,12.41012396]
[1748517117194,5.92723851,172.86,172.83,12.41012396]
[1748517117501,0.14216157,172.85,172.83,0.14216157]
[1748517117888,0.28432314,172.85,172.83,0.14216157]
[1748517118697,6.06988276,172.85,172.83,0.14216157]
[1748517119401,6.06988276,172.85,172.82,12.26796239]
[1748517119997,6.06988276,172.85,172.82,7.8498211]
[1748517122283,6.06988276,172.85,172.81,0.14216157]
[1748517122603,6.06988276,172.85,172.82,7.8498211]
[1748517126604,0.28432314,172.85,172.82,7.8498211]
[1748517129415,0.42648471,172.86,172.85,0.14216157]
[1748517133702,6.21151305,172.86,172.85,0.14216157]
[1748517135294,6.21151305,172.86,172.84,0.14216157]
[1748517136499,0.42648471,172.84,172.79,0.14216157]
[1748517136821,0.42648471,172.82,172.78,0.14216157]
[1748517137029,0.42648471,172.82,172.78,7.99198267]
[1748517137341,0.42648471,172.82,172.79,7.8498211]
[1748517137505,6.2131417,172.82,172.79,7.8498211]
[1748517140632,8.27630581,172.8,172.75,7.8498211]
[1748517140938,8.27630581,172.8,172.75,0.14216157]
[1748517141116,8.27630581,172.8,172.75,7.99198267]
[1748517141806,8.27630581,172.8,172.75,0.14216157]
[1748517141807,0.42648471,172.78,172.75,0.14216157]
[1748517142604,0.42648471,172.76,172.73,7.8498211]
[1748517142908,0.42648471,172.76,172.72,7.99198267]
[1748517143106,0.42648471,172.76,172.72,0.14216157]
[1748517143311,0.42648471,172.76,172.72,7.99198267]
[1748517144032,8.27630581,172.76,172.72,0.14216157]
[1748517144609,0.14216157,172.74,172.72,0.14216157]
[1748517146828,5.78934251,172.74,172.72,0.14216157]
[1748517148536,5.93087358,172.75,172.72,0.14216157]
[1748517151006,0.28432314,172.74,172.72,0.14216157]
[1748517151229,0.14216157,172.73,172.72,0.14216157]
[1748517152116,5.93154384,172.73,172.72,0.14216157]
[1748517152316,5.93154384,172.73,172.7,0.14216157]
[1748517154518,0.14216157,172.71,172.68,0.14216157]
[1748517156658,5.79038795,172.7,172.68,0.14216157]
[1748517158632,18.0705607,172.7,172.67,0.14216157]
[1748517159256,5.79038795,172.7,172.67,0.14216157]
[1748517162533,5.79038795,172.7,172.66,0.14216157]
[1748517162534,12.70665746,172.69,172.66,0.14216157]
[1748517162847,12.28017275,172.68,172.66,0.14216157]
[1748517163040,0.14216157,172.67,172.66,0.14216157]
[1748517164765,5.93355555,172.67,172.66,0.14216157]
[1748517165550,18.2137283,172.67,172.64,0.14216157]
[1748517165751,12.42233432,172.65,172.64,0.14216157]
[1748517166252,12.42233432,172.65,172.6,0.14216157]
[1748517166545,0.14216157,172.65,172.62,0.14216157]
[1748517166751,5.93447256,172.65,172.62,0.14216157]
[1748517167559,18.21464531,172.65,172.61,0.14216157]
[1748517168143,5.93447256,172.65,172.62,0.14216157]
[1748517171242,0.14216157,172.65,172.62,0.14216157]
[1748517171638,5.93432032,172.65,172.62,0.14216157]
[1748517173780,19.07613357,172.64,172.58,8.33333333]
[1748517173983,0.42648471,172.62,172.59,0.14216157]
[1748517175446,5.7934071,172.61,172.59,0.14216157]
[1748517176260,0.14216157,172.6,172.59,0.14216157]
[1748517177056,5.93590432,172.6,172.59,0.14216157]
[1748517177264,6.22022746,172.6,172.59,0.14216157]
[1748517180773,0.42648471,172.6,172.59,0.14216157]
[1748517180958,6.22022746,172.6,172.59,0.14216157]
[1748517183361,18.50040021,172.6,172.59,0.14216157]
[1748517184470,12.70665746,172.6,172.59,0.14216157]
[1748517184673,0.42648471,172.61,172.59,0.14216157]
[1748517185666,12.28017275,172.63,172.59,0.14216157]
[1748517185879,0.14216157,172.62,172.59,12.42233432]
[1748517189377,5.9353127,172.62,172.59,12.42233432]
[1748517191079,5.9353127,172.62,172.59,0.14216157]
[1748517191578,18.21548545,172.62,172.59,0.14216157]
[1748517192058,13.80695382,172.62,172.59,0.14216157]
[1748517194852,5.9353127,172.62,172.59,0.14216157]
[1748517198385,5.9353127,172.62,172.59,8.01380269]
[1748517202359,5.9353127,172.62,172.59,0.14216157]
[1748517209718,5.9353127,172.62,172.59,8.01380269]
[1748517215586,0.14216157,172.63,172.61,0.14216157]
[1748517215801,147.3,172.64,172.63,0.14216157]
[1748517216003,17.09164112,172.68,172.63,8.01380269]
[1748517216004,0.42648471,172.66,172.63,8.01380269]
[1748517216206,5.79139398,172.67,172.63,8.01380269]
[1748517216417,0.28432314,172.66,172.63,8.01380269]
[1748517216700,0.14216157,172.66,172.63,8.01380269]
[1748517216903,5.93400925,172.66,172.62,7.87164112]
[1748517217210,0.14216157,172.65,172.63,0.14216157]
[1748517218813,5.93423687,172.65,172.63,0.14216157]
[1748517231088,6.21829927,172.66,172.63,0.14216157]
[1748517231304,5.93397613,172.66,172.63,8.01380269]
[1748517231515,153.09114471,172.68,172.65,8.01380269]
[1748517231816,153.09114471,172.68,172.66,7.87164112]
[1748517233083,147.3,172.68,172.67,8.01380269]
[1748517234892,147.3,172.68,172.67,0.14216157]
[1748517235096,5.78941246,172.73,172.68,0.14216157]
[1748517235398,5.78941246,172.73,172.71,8.01380269]
[1748517237712,5.78941246,172.73,172.71,0.14216157]
[1748517244421,5.93157403,172.73,172.72,0.5]
[1748517245107,5.93157403,172.73,172.71,0.14216157]
[1748517245313,0.14216157,172.72,172.71,0.14216157]
[1748517246398,5.93187903,172.72,172.71,0.14216157]
[1748517246629,5.78941755,172.73,172.71,0.14216157]
[1748517251111,5.93157912,172.73,172.72,0.5]
[1748517251953,0.14216157,172.73,172.72,0.5]
[1748517252430,0.14216157,172.75,172.73,0.14216157]
[1748517252628,0.14216157,172.75,172.74,7.87164112]
[1748517254812,5.93087358,172.75,172.74,7.87164112]
[1748517255014,0.14216157,172.75,172.74,7.87164112]
[1748517255217,153.08796496,172.78,172.75,0.14216157]
[1748517255519,153.08796496,172.78,172.76,0.14216157]
[1748517255520,0.14216157,172.77,172.76,0.14216157]
[1748517256350,5.93020347,172.77,172.76,0.14216157]
[1748517259338,153.08799004,172.78,172.76,0.14216157]
[1748517263447,0.14216157,172.77,172.76,0.14216157]
[1748517263747,0.42648471,172.77,172.76,0.14216157]
[1748517264922,6.21452661,172.77,172.76,0.14216157]
[1748517266628,5.93020347,172.77,172.76,0.14216157]
[1748517277059,5.93020347,172.77,172.75,0.14216157]
[1748517281367,147.3,172.78,172.75,8.01380269]
[1748517281368,153.08779854,172.78,172.75,8.01380269]
[1748517281869,153.08779854,172.78,172.76,35.42]
[1748517283377,147.3,172.78,172.77,8.01380269]
[1748517284664,5.92928131,172.8,172.77,8.01380269]
[1748517287238,5.92928131,172.8,172.77,0.14216157]
[1748517287755,0.42648471,172.79,172.77,0.14216157]
[1748517288472,5.92986848,172.78,172.77,0.14216157]
[1748517293078,5.92986848,172.78,172.76,0.14216157]
[1748517293951,0.14216157,172.77,172.75,0.14216157]
[1748517295569,5.93042746,172.77,172.73,9.18]
[1748517295769,5.93042746,172.77,172.75,0.14216157]
[1748517297955,5.93042746,172.77,172.74,8.51380269]
[1748517299075,0.28432314,172.76,172.74,0.64216157]
[1748517299276,0.28432314,172.76,172.74,0.5]
[1748517299575,0.28432314,172.76,172.73,0.14216157]
[1748517300670,0.14216157,172.75,172.72,0.14216157]
[1748517301187,0.14216157,172.73,172.72,0.14216157]
[1748517301557,0.14216157,172.73,172.72,8.01380269]
[1748517302879,0.42648471,172.76,172.72,8.01380269]
[1748517303059,0.42648471,172.76,172.75,0.14216157]
[1748517304270,0.14216157,172.76,172.75,0.14216157]
[1748517304468,147.3,172.77,172.75,8.01380269]
[1748517307282,147.44216157,172.77,172.76,0.5]
[1748517307483,147.44216157,172.77,172.75,8.01380269]
[1748517309015,147.44216157,172.77,172.75,0.14216157]
[1748517311265,153.23024136,172.77,172.75,0.14216157]
[1748517313767,0.14216157,172.76,172.75,0.14216157]
[1748517313997,0.42648471,172.76,172.72,43.43380269]
[1748517314173,0.42648471,172.76,172.72,35.56216157]
[1748517314373,0.42648471,172.76,172.72,43.93380269]
[1748517315661,5.78871201,172.75,172.72,43.93380269]
[1748517315870,6.21496421,172.76,172.73,7.87164112]
[1748517317998,6.21496421,172.76,172.72,36.06216157]
[1748517318372,0.42648471,172.76,172.73,7.87164112]
[1748517318585,147.3,172.77,172.75,8.01380269]
[1748517320282,153.08806156,172.77,172.75,0.14216157]
[1748517323286,147.3,172.77,172.76,8.01380269]
[1748517326892,5.78739383,172.79,172.76,8.01380269]
[1748517327094,5.78739383,172.79,172.77,35.4]
[1748517331023,0.42648471,172.78,172.77,0.14216157]
[1748517331193,0.42648471,172.78,172.75,0.14216157]
[1748517333225,0.28432314,172.76,172.75,0.14216157]
[1748517336522,5.7880419,172.77,172.75,8.01380269]
[1748517336523,0.28432314,172.77,172.75,8.01380269]
[1748517336733,0.28432314,172.77,172.76,7.87164112]
[1748517337019,147.3,172.79,172.76,8.01380269]
[1748517337334,0.28432314,172.78,172.77,35.4]
[1748517337902,147.3,172.79,172.78,0.14216157]
[1748517338128,0.28432314,172.8,172.78,8.01380269]
[1748517338298,0.14216157,172.8,172.78,8.01380269]
[1748517338798,0.28432314,172.8,172.78,8.01380269]
[1748517340510,6.07138049,172.8,172.78,8.01380269]
[1748517341326,6.07138049,172.8,172.78,0.14216157]
[1748517342004,6.07138049,172.8,172.78,8.01380269]
[1748517342205,6.07138049,172.8,172.79,0.5]
[1748517342400,6.07138049,172.8,172.78,8.01380269]
[1748517342599,6.07138049,172.8,172.78,0.14216157]
[1748517344219,0.14216157,172.8,172.78,8.01380269]
[1748517344422,0.28432314,172.8,172.78,8.01380269]
[1748517346200,6.07142593,172.8,172.78,8.01380269]
[1748517347126,6.07142593,172.8,172.78,0.14216157]
[1748517348637,6.07142593,172.8,172.78,8.01380269]
[1748517350525,6.07142593,172.8,172.78,0.14216157]
[1748517350841,6.07142593,172.8,172.79,0.5]
[1748517351013,6.07142593,172.8,172.78,8.01380269]
[1748517354643,147.3,172.84,172.8,0.14216157]
[1748517354940,147.58432314,172.84,172.83,0.14216157]
[1748517355138,147.44216157,172.84,172.83,0.14216157]
[1748517355635,147.58432314,172.84,172.83,0.14216157]
[1748517355837,153.37013289,172.84,172.83,0.14216157]
[1748517357021,0.28432314,172.84,172.83,8.01380269]
[1748517357217,0.14216157,172.85,172.84,0.14216157]
[1748517357421,153.08478971,172.87,172.84,8.01380269]
[1748517357947,0.28432314,172.86,172.84,8.01380269]
[1748517358238,0.14216157,172.86,172.84,8.01380269]
[1748517358433,0.14216157,172.86,172.85,8.01380269]
[1748517358631,0.28432314,172.86,172.85,8.01380269]
[1748517361250,147.3,172.87,172.86,0.14216157]
[1748517361419,147.58432314,172.87,172.86,8.01380269]
[1748517361625,153.36901684,172.87,172.86,0.14216157]
[1748517362153,153.36901684,172.87,172.85,8.01380269]
[1748517366030,0.28432314,172.86,172.83,0.14216157]
[1748517366338,0.28432314,172.86,172.83,8.01380269]
[1748517366936,0.42648471,172.86,172.83,8.01380269]
[1748517367254,0.42648471,172.86,172.83,0.14216157]
[1748517367574,0.42648471,172.86,172.8,35.16]
[1748517367575,0.28432314,172.83,172.81,0.14216157]
[1748517367764,13.80017,172.82,172.81,0.14216157]
[1748517367931,0.42648471,172.81,172.78,0.14216157]
[1748517368132,8.29812583,172.81,172.78,0.14216157]
[1748517369245,7.87164112,172.8,172.77,0.14216157]
[1748517369970,0.28432314,172.78,172.77,0.14216157]
[1748517370260,0.28432314,172.78,172.76,0.14216157]
[1748517370634,0.28432314,172.78,172.77,0.5]
[1748517371241,0.28432314,172.78,172.76,0.14216157]
[1748517371978,6.07208647,172.78,172.75,0.14216157]
[1748517372273,6.07208647,172.78,172.75,12.41740368]
[1748517374562,6.07208647,172.78,172.75,0.14216157]
[1748517375063,6.07208647,172.78,172.75,12.41740368]
[1748517376738,0.28432314,172.79,172.78,0.14216157]
[1748517379166,0.28432314,172.79,172.77,0.14216157]
[1748517379769,0.28432314,172.78,172.75,0.14216157]
[1748517379980,0.28432314,172.78,172.75,12.41740368]
[1748517386487,0.28432314,172.78,172.77,0.14216157]
[1748517386657,0.28432314,172.78,172.77,12.41740368]
[1748517389286,0.28432314,172.8,172.77,12.41740368]
[1748517389491,0.28432314,172.8,172.79,0.14216157]
[1748517397873,0.28432314,172.8,172.79,7.9950037]
[1748517400197,6.21352174,172.8,172.79,0.14216157]
[1748517405579,14.06636387,172.8,172.79,0.14216157]
[1748517405773,0.14216157,172.79,172.75,7.85284213]
[1748517405980,0.14216157,172.79,172.76,0.14216157]
[1748517407684,0.28432314,172.77,172.76,0.14216157]
[1748517408577,0.28432314,172.77,172.74,7.9950037]
[1748517409806,0.28432314,172.76,172.74,7.9950037]
[1748517410990,0.28432314,172.76,172.75,7.9950037]
[1748517413112,0.28432314,172.76,172.75,0.14216157]
[1748517414491,0.28432314,172.77,172.76,0.14216157]
[1748517414687,0.28432314,172.77,172.76,7.9950037]
[1748517415722,0.28432314,172.77,172.76,0.14216157]
[1748517416096,6.07236504,172.77,172.76,0.14216157]
[1748517416716,6.07236504,172.77,172.74,0.14216157]
[1748517416894,6.07236504,172.77,172.75,7.85284213]
[1748517418013,6.07236504,172.77,172.74,0.14216157]
[1748517418194,6.07236504,172.77,172.75,7.85284213]
[1748517420812,0.28432314,172.77,172.76,7.9950037]
[1748517421022,153.08780505,172.78,172.76,7.9950037]
[1748517421023,147.3,172.78,172.76,7.9950037]
[1748517421205,147.58432314,172.78,172.77,7.9950037]
[1748517421593,147.3,172.78,172.77,7.9950037]
[1748517421794,147.3,172.78,172.77,0.14216157]
[1748517422092,147.3,172.78,172.77,7.9950037]
[1748517424528,147.3,172.78,172.75,0.14216157]
[1748517424529,153.37203005,172.78,172.75,0.14216157]
[1748517424729,0.28432314,172.77,172.75,0.14216157]
[1748517425402,0.28432314,172.77,172.74,0.14216157]
[1748517425608,5.78837693,172.76,172.74,0.14216157]
[1748517425923,5.78837693,172.76,172.73,43.21284213]
[1748517425924,0.28432314,172.75,172.73,0.14216157]
[1748517426309,0.28432314,172.75,172.74,7.9950037]
[1748517427907,6.07303515,172.75,172.74,0.14216157]
[1748517428232,0.28432314,172.75,172.74,0.14216157]
[1748517428528,147.3,172.78,172.74,12.4202935]
[1748517428720,147.58432314,172.78,172.77,12.4202935]
[1748517429034,147.44216157,172.78,172.77,12.4202935]
[1748517429199,147.58432314,172.78,172.77,12.4202935]
[1748517429403,147.3,172.78,172.77,12.4202935]
[1748517433433,0.14216157,172.8,172.78,0.14216157]
[1748517433637,0.14216157,172.8,172.79,12.4202935]
[1748517433855,1.6115,172.92,172.84,0.14216157]
[1748517434138,1.6115,172.97,172.92,0.14216157]
[1748517434305,1.6115,172.97,172.91,12.27813193]
[1748517434306,1.6115,172.97,172.94,12.4202935]
[1748517434843,0.28432314,172.96,172.94,12.4202935]
[1748517435147,1.6115,172.97,172.94,12.4202935]
[1748517435315,0.28432314,172.96,172.94,12.4202935]
[1748517435512,7.39293863,172.97,172.94,12.4202935]
[1748517436325,7.39293863,172.97,172.94,0.14216157]
[1748517437308,0.14216157,172.96,172.94,0.14216157]
[1748517437512,0.42648471,172.96,172.94,0.14216157]
[1748517439250,5.78201792,172.95,172.94,0.14216157]
[1748517440447,6.20850263,172.95,172.94,0.14216157]
[1748517440641,0.42648471,172.94,172.93,0.14216157]
[1748517441260,6.20883697,172.94,172.93,0.14216157]
[1748517441549,6.20883697,172.94,172.92,0.14216157]
[1748517445352,147.72648471,172.93,172.92,0.14216157]
[1748517446646,153.50917134,172.93,172.92,0.14216157]
[1748517451037,153.50917134,172.93,172.92,12.4202935]
[1748517454459,153.50917134,172.93,172.92,0.14216157]
[1748517455231,153.36700977,172.93,172.92,0.14216157]
[1748517456073,153.50917134,172.93,172.92,0.14216157]
[1748517456271,165.78730327,172.93,172.9,0.14216157]
[1748517457075,165.78730327,172.93,172.89,0.14216157]
[1748517457460,153.50917134,172.93,172.89,12.4202935]
[1748517460576,153.50917134,172.93,172.9,12.27813193]
[1748517461691,153.50917134,172.93,172.91,0.5]
[1748517462179,153.50917134,172.93,172.9,12.27813193]
[1748517466194,5.77600646,173.13,172.97,26.14216157]
[1748517466357,5.77600646,173.13,173.1,12.27813193]
[1748517466560,5.77600646,173.13,173.1,0.14216157]
[1748517466859,5.77567286,173.14,173.1,0.14216157]
[1748517467477,18.05380479,173.14,173.1,0.14216157]
[1748517468062,19.07613357,173.13,173.1,0.14216157]
[1748517468257,5.77567286,173.14,173.09,12.4202935]
[1748517468673,0.42648471,173.13,173.09,12.4202935]
[1748517468864,5.77567286,173.14,173.09,12.4202935]
[1748517469170,18.05380479,173.14,173.09,0.14216157]
[1748517469376,5.77634011,173.12,173.09,0.14216157]
[1748517469562,0.14216157,173.11,173.09,0.14216157]
[1748517469884,0.28432314,173.11,173.09,0.14216157]
[1748517471284,6.06133065,173.1,173.09,0.14216157]
[1748517472318,6.06133065,173.1,173.03,6.5509]
[1748517472521,6.06133065,173.1,173.04,47.8202935]
[1748517472522,12.70461664,173.09,173.04,47.8202935]
[1748517473384,0.28432314,173.07,173.04,47.8202935]
[1748517474931,5.77834277,173.06,173.04,47.8202935]
[1748517477313,5.77834277,173.06,173.05,0.5]
[1748517478113,5.77834277,173.06,173.04,0.14216157]
[1748517478295,5.77834277,173.06,173.04,35.50216157]
[1748517478500,0.28432314,173.05,173.02,12.27813193]
[1748517478817,0.28432314,173.05,173.03,0.14216157]
[1748517479010,0.28432314,173.05,173.03,35.50216157]
[1748517480004,6.06333377,173.04,173.03,35.50216157]
[1748517480320,0.28432314,173.03,173.02,0.14216157]
[1748517480498,5.77901063,173.04,173.02,0.14216157]
[1748517483999,5.9211722,173.04,173.03,0.14216157]
[1748517487110,5.77800889,173.07,173.03,12.4202935]
[1748517487313,5.77800889,173.07,173.05,0.14216157]
[1748517487635,0.14216157,173.06,173.05,0.14216157]
[1748517488422,5.92050434,173.06,173.05,0.14216157]
[1748517493927,5.77802846,173.07,173.05,0.14216157]
[1748517494100,5.77802846,173.07,173.05,35.44216157]
[1748517503034,5.77802846,173.07,173.04,0.14216157]
[1748517503212,5.77802846,173.07,173.04,35.42216157]
[1748517503938,5.77802846,173.07,173.05,0.5]
[1748517504254,5.77802846,173.07,173.04,35.42216157]
[1748517507920,153.07777288,173.08,173.04,35.42216157]
[1748517508130,153.21993445,173.08,173.07,0.14216157]
[1748517508516,147.3,173.08,173.07,12.4202935]
[1748517509239,147.3,173.08,173.07,47.7202935]
[1748517510742,147.3,173.08,173.07,35.44216157]
[1748517510947,147.3,173.15,173.07,47.7202935]
[1748517511125,12.27813193,173.14,173.1,0.14216157]
[1748517511325,0.14216157,173.13,173.1,0.14216157]
[1748517511737,0.14216157,173.13,173.1,12.4202935]
[1748517512044,5.77567286,173.14,173.1,12.4202935]
[1748517512742,0.14216157,173.13,173.1,12.4202935]
[1748517512929,5.91838627,173.13,173.1,12.4202935]
[1748517514150,5.91838627,173.13,173.12,0.14216157]
[1748517514339,5.77576211,173.14,173.13,0.14216157]
[1748517518456,5.77576211,173.14,173.12,0.14216157]
[1748517518630,5.77576211,173.14,173.12,12.4202935]
[1748517519436,5.77576211,173.14,173.12,47.7002935]
[1748517520246,6.53446157,173.2,173.12,47.7002935]
[1748517520247,1.5004,173.28,173.17,0.14216157]
[1748517520566,1.5004,173.28,173.22,0.14216157]
[1748517520567,18.04947145,173.27,173.22,0.14216157]
[1748517520930,12.27813193,173.26,173.22,0.14216157]
[1748517521351,5.77200577,173.25,173.21,0.14216157]
[1748517521563,0.14216157,173.24,173.21,0.14216157]
[1748517522132,12.4202935,173.24,173.2,0.14216157]
[1748517522327,0.14216157,173.24,173.2,0.14216157]
[1748517522557,0.14216157,173.24,173.2,12.4202935]
[1748517522769,0.28432314,173.24,173.2,12.4202935]
[1748517523348,5.77267216,173.23,173.2,0.14216157]
[1748517523569,5.77267216,173.23,173.21,0.14216157]
[1748517525340,5.77267216,173.23,173.2,0.14216157]
[1748517526045,5.77267216,173.23,173.2,12.4202935]
[1748517527171,5.77267216,173.23,173.21,0.5]
[1748517527481,5.77267216,173.23,173.19,12.4202935]
[1748517527648,5.77267216,173.23,173.19,0.14216157]
[1748517527840,5.77267216,173.23,173.19,12.4202935]
[1748517529073,5.77267216,173.23,173.19,0.14216157]
[1748517529376,5.77267216,173.23,173.21,0.14216157]
[1748517529766,20.20435258,173.23,173.19,0.14216157]
[1748517530065,12.27813193,173.21,173.19,0.14216157]
[1748517530767,12.27813193,173.21,173.18,0.14216157]
[1748517530967,12.27813193,173.19,173.18,0.14216157]
[1748517531149,12.27813193,173.19,173.16,0.14216157]
[1748517532072,5.77433883,173.18,173.15,0.14216157]
[1748517535049,0.14216157,173.18,173.15,0.14216157]
[1748517537054,5.77467228,173.17,173.16,0.5]
[1748517537258,5.77467228,173.17,173.16,0.14216157]
[1748517537891,5.77467228,173.17,173.16,12.4202935]
[1748517538357,5.77467228,173.17,173.16,0.14216157]
[1748517538779,5.77367205,173.2,173.16,12.4202935]
[1748517539080,20.20599895,173.22,173.19,0.14216157]
[1748517539479,0.14216157,173.21,173.19,0.14216157]
[1748517539773,20.20599895,173.22,173.19,0.14216157]
[1748517540982,20.20599895,173.22,173.14,0.14216157]
[1748517541151,5.77300542,173.22,173.21,0.14216157]
[1748517542261,5.91483373,173.23,173.21,0.14216157]
[1748517543156,5.77267216,173.23,173.21,12.4202935]
[1748517544349,5.77200577,173.25,173.21,12.4202935]
[1748517545568,5.77200577,173.25,173.19,0.14216157]
[1748517545569,0.14216157,173.24,173.19,0.14216157]
[1748517545768,0.14216157,173.24,173.21,0.14216157]
[1748517547568,5.77267216,173.23,173.21,0.14216157]
[1748517548378,5.77267216,173.23,173.22,12.4202935]
[1748517548789,5.77267216,173.23,173.22,0.14216157]
[1748517549698,5.77267216,173.23,173.21,0.14216157]
[1748517554300,5.77267216,173.23,173.19,0.14216157]
[1748517554499,5.77267216,173.23,173.21,0.14216157]
[1748517555795,5.77267216,173.23,173.19,0.14216157]
[1748517556003,5.77267216,173.23,173.21,0.14216157]
[1748517558586,5.77267216,173.23,173.21,0.5]
[1748517558793,5.77267216,173.23,173.19,12.4202935]
[1748517559706,0.14216157,173.2,173.18,0.14216157]
[1748517559919,12.27813193,173.2,173.18,0.14216157]
[1748517560285,0.14216157,173.22,173.16,0.14216157]
[1748517560485,12.27813193,173.2,173.16,0.14216157]
[1748517560710,5.77400542,173.19,173.16,0.14216157]
[1748517561793,5.77400542,173.19,173.17,0.14216157]
[1748517563016,5.91583362,173.2,173.17,0.14216157]
[1748517563185,18.19396555,173.2,173.15,0.14216157]
[1748517563518,18.19396555,173.2,173.15,12.4202935]
[1748517563699,12.27813193,173.19,173.15,12.4202935]
[1748517564518,5.91583362,173.2,173.17,12.27813193]
[1748517564691,5.91583362,173.2,173.18,0.14216157]
[1748517565615,5.91583362,173.2,173.17,0.14216157]
[1748517566698,5.91583362,173.2,173.18,0.14216157]
[1748517567004,5.91583362,173.2,173.18,0.64216157]
[1748517567197,18.19396555,173.2,173.18,0.14216157]
[1748517567513,18.19396555,173.2,173.17,0.14216157]
[1748517570527,18.19396555,173.2,173.16,0.14216157]
[1748517571296,18.19396555,173.2,173.16,12.4202935]
[1748517576340,18.05247076,173.18,173.13,0.14216157]
[1748517576536,12.27813193,173.17,173.13,48.3202935]
[1748517576715,12.27813193,173.17,173.13,12.4202935]
[1748517577032,12.27813193,173.17,173.13,48.3202935]
[1748517577407,18.05247076,173.18,173.13,48.3202935]
[1748517578321,18.05247076,173.18,173.13,48.3002935]
[1748517579522,5.77433883,173.18,173.15,0.14216157]
[1748517583423,5.77433883,173.18,173.16,0.14216157]
[1748517584511,5.77433883,173.18,173.15,0.14216157]
[1748517584921,5.77433883,173.18,173.15,0.64216157]
[1748517585129,5.77433883,173.18,173.15,0.14216157]
[1748517586033,0.14216157,173.18,173.14,7.96192303]
[1748517586333,7.96192303,173.18,173.14,0.14216157]
[1748517587219,0.14216157,173.18,173.14,0.14216157]
[1748517587531,0.14216157,173.18,173.14,7.96192303]
[1748517588334,5.77467228,173.17,173.14,7.96192303]
[1748517590520,5.77467228,173.17,173.15,0.5]
[1748517591046,5.91656588,173.18,173.15,0.5]
[1748517592651,5.91656588,173.18,173.14,7.96192303]
[1748517592850,13.73632734,173.18,173.14,0.14216157]
[1748517597255,13.73632734,173.18,173.15,0.5]
[1748517597439,13.73632734,173.18,173.14,0.14216157]
[1748517598761,148.8126,173.22,173.16,0.14216157]
[1748517599058,0.14216157,173.21,173.17,7.96192303]
[1748517599241,156.63236146,173.22,173.17,0.14216157]
[1748517599561,7.81976146,173.21,173.17,0.14216157]
[1748517599948,13.59321874,173.21,173.17,0.14216157]
[1748517600655,5.77345728,173.21,173.17,0.14216157]
[1748517600962,13.59321874,173.21,173.17,0.14216157]
[1748517602023,13.59321874,173.21,173.16,7.81976146]
[1748517602024,7.81976146,173.2,173.16,0.14216157]
[1748517602737,5.77345728,173.21,173.17,0.14216157]
[1748517603060,13.59321874,173.21,173.17,0.14216157]
[1748517606564,7.96192303,173.2,173.15,0.14216157]
[1748517606764,7.96192303,173.2,173.15,7.96192303]
[1748517607942,5.77400542,173.19,173.15,7.96192303]
[1748517608161,5.77400542,173.19,173.17,0.14216157]
[1748517610382,5.77400542,173.19,173.18,0.5]
[1748517610763,5.77400542,173.19,173.16,7.81976146]
[1748517610764,5.77400542,173.19,173.16,0.14216157]
[1748517611057,5.77400542,173.19,173.16,7.96192303]
[1748517611570,155.11976146,173.22,173.18,0.14216157]
[1748517611750,153.07306898,173.22,173.19,0.14216157]
[1748517612084,7.96192303,173.23,173.19,7.96192303]
[1748517612085,5.77277891,173.23,173.19,7.96192303]
[1748517612244,5.77277891,173.23,173.21,0.14216157]
[1748517614175,5.77242033,173.24,173.21,0.14216157]
[1748517615156,7.96192303,173.25,173.21,0.14216157]
[1748517615157,5.91419558,173.25,173.22,0.14216157]
[1748517615476,0.14216157,173.23,173.22,0.14216157]
[1748517615652,5.91483373,173.23,173.2,0.14216157]
[1748517615973,13.73459519,173.23,173.2,0.14216157]
[1748517616366,5.91483373,173.23,173.19,7.96192303]
[1748517616549,5.91483373,173.23,173.19,8.46192303]
[1748517616750,13.73459519,173.23,173.19,0.64216157]
[1748517623160,13.73459519,173.23,173.16,0.14216157]